bitfinex/quotes_BTCUSD_20250410
["timestamp","ask_amount","ask_price","bid_price","bid_amount"]
[1744295418100,0.258358,81282.0,81270.0,0.246091]
[1744295418436,0.37891182,81282.0,81261.0,0.016306]
[1744295418590,0.246087,81272.0,81267.0,0.246102]
[1744295418792,0.246111,81264.0,81261.0,0.004]
[1744295419011,0.0475,81266.0,81263.0,0.246111]
[1744295419360,0.0475,81266.0,81261.0,0.004]
[1744295419361,0.059505,81265.0,81261.0,0.004]
[1744295419644,0.25842,81263.0,81261.0,0.004]
[1744295420226,0.246115,81263.0,81261.0,0.004]
[1744295420404,0.258417,81264.0,81261.0,0.004]
[1744295421056,0.246115,81263.0,81261.0,0.004]
[1744295421243,0.246116,81263.0,81261.0,0.004]
[1744295421445,0.012305,81262.0,81261.0,0.004]
[1744295422210,0.305619,81265.0,81262.0,0.258418]
[1744295422211,0.0472,81265.0,81262.0,0.258418]
[1744295422522,0.0472,81265.0,81264.0,0.258416]
[1744295422747,0.0475,81266.0,81265.0,0.012305]
[1744295423829,0.0475,81266.0,81265.0,0.13531982]
[1744295424032,0.0475,81266.0,81265.0,0.13285882]
[1744295424238,0.046,81278.0,81277.0,0.258375]
[1744295424750,0.0494,81287.0,81281.0,0.258361]
[1744295424950,0.0494,81287.0,81281.0,0.71891482]
[1744295425160,1e-06,81292.0,81281.0,0.71891482]
[1744295425764,1e-06,81292.0,81278.0,0.012303]
[1744295425765,0.24617293,81282.0,81278.0,0.25837]
[1744295425975,0.00011493,81282.0,81281.0,0.012302]
[1744295426123,0.00011493,81282.0,81280.0,0.246062]
[1744295426330,0.00011493,81282.0,81279.0,0.258368]
[1744295426523,0.00011493,81282.0,81281.0,0.012302]
[1744295427440,0.00011493,81282.0,81281.0,0.01476239]
[1744295428065,0.00011493,81282.0,81281.0,0.012302]
[1744295428689,0.00011493,81282.0,81281.0,0.13531605]
[1744295429361,0.00011493,81282.0,81274.0,0.24608]
[1744295429362,0.258372,81278.0,81274.0,0.24608]
[1744295429570,0.00011493,81282.0,81278.0,0.012303]
[1744295429825,0.01241693,81282.0,81275.0,0.012303]
[1744295430025,0.0473,81279.0,81276.0,0.246074]
[1744295430384,0.0473,81279.0,81277.0,0.24607]
[1744295430608,0.0473,81279.0,81276.0,0.258377]
[1744295430809,0.0473,81279.0,81277.0,0.258374]
[1744295431014,0.0473,81279.0,81276.0,0.258377]
[1744295431208,0.0473,81279.0,81277.0,0.258372]
[1744295431412,0.0473,81279.0,81278.0,0.012303]
[1744295431590,0.00011493,81282.0,81281.0,0.258361]
[1744295431816,0.00011493,81282.0,81281.0,0.73345567]
[1744295432010,9.3e-07,81282.0,81281.0,0.73345567]
[1744295432420,9.3e-07,81282.0,81281.0,0.71891482]
[1744295432633,9.3e-07,81282.0,81260.0,0.42514815]
[1744295432837,9.3e-07,81282.0,81281.0,0.012302]
[1744295433220,0.012303,81277.0,81272.0,0.246084]
[1744295433418,0.246063,81280.0,81275.0,0.246076]
[1744295433616,0.04900093,81282.0,81275.0,0.246076]
[1744295433617,0.29505993,81282.0,81279.0,0.246065]
[1744295433931,0.04900093,81282.0,81281.0,0.012302]
[1744295434286,9.3e-07,81282.0,81281.0,0.012302]
[1744295434462,9.3e-07,81282.0,81281.0,0.01476226]
[1744295435560,9.3e-07,81282.0,81281.0,0.13531608]
[1744295436527,9.3e-07,81282.0,81281.0,0.48985693]
[1744295436822,9.3e-07,81282.0,81281.0,0.48739667]
[1744295438387,9.3e-07,81282.0,81281.0,0.58012037]
[1744295439374,9.3e-07,81282.0,81281.0,0.82617937]
[1744295440707,9.3e-07,81282.0,81281.0,0.83874912]
[1744295440915,1e-06,81292.0,81291.0,0.61787085]
[1744295441159,1e-06,81292.0,81291.0,0.82614837]
[1744295443892,1e-06,81292.0,81291.0,0.77114837]
[1744295444093,1e-06,81292.0,81291.0,0.78842467]
[1744295444465,1e-06,81292.0,81291.0,0.82610052]
[1744295446066,0.0001684,81345.0,81336.0,0.012294]
[1744295446268,0.0001684,81345.0,81336.0,0.73574007]
[1744295446269,0.00012793,81337.0,81336.0,0.73574007]
[1744295446446,0.00012793,81337.0,81336.0,0.73328167]
[1744295447407,0.00012793,81337.0,81336.0,0.39328167]
[1744295447555,0.00012793,81337.0,81336.0,0.71874082]
[1744295448803,0.00012793,81337.0,81336.0,0.258187]
[1744295449014,0.00012793,81337.0,81336.0,0.37874082]
[1744295449786,0.00012793,81337.0,81336.0,0.73328167]
[1744295450912,9.3e-07,81337.0,81336.0,0.73328167]
[1744295454585,0.0001684,81345.0,81344.0,0.258162]
[1744295454908,0.00059318,81345.0,81344.0,0.37871582]
[1744295455243,0.00059318,81345.0,81344.0,0.71871582]
[1744295458076,0.00059318,81345.0,81325.0,0.12651269]
[1744295458278,0.00059318,81345.0,81339.0,0.245882]
[1744295458279,0.0941,81344.0,81339.0,0.245882]
[1744295458486,0.0941,81344.0,81337.0,0.24589]
[1744295458684,0.0941,81344.0,81329.0,0.258208]
[1744295458685,0.245881,81341.0,81329.0,0.258208]
[1744295458889,0.0941,81344.0,81330.0,0.012295]
[1744295459089,0.0941,81344.0,81338.0,0.245886]
[1744295459311,0.245881,81340.0,81337.0,0.24589]
[1744295459513,0.245884,81339.0,81336.0,0.012294]
[1744295459711,0.012295,81329.0,81310.0,0.25133923]
[1744295459936,0.258222,81325.0,81290.0,0.05]
[1744295460133,0.258222,81325.0,81301.0,0.012299]
[1744295460134,0.0478,81325.0,81301.0,0.012299]
[1744295460336,0.0478,81325.0,81324.0,0.38473769]
[1744295460750,0.0478,81325.0,81324.0,0.12651269]
[1744295460976,0.060096,81325.0,81324.0,0.12651269]
[1744295461154,0.0478,81325.0,81324.0,0.13880869]
[1744295461611,0.0478,81325.0,81324.0,0.012296]
[1744295462212,0.0484,81328.0,81327.0,0.258216]
[1744295462454,0.0451,81339.0,81338.0,0.258181]
[1744295462803,0.0948,81339.0,81338.0,0.258181]
[1744295463141,0.012294,81334.0,81328.0,0.012295]
[1744295463364,0.012294,81337.0,81328.0,0.012295]
[1744295463648,0.012295,81332.0,81324.0,0.012296]
[1744295463883,0.245912,81330.0,81326.0,0.245922]
[1744295464063,0.012295,81332.0,81325.0,0.012296]
[1744295464064,0.012293,81344.0,81335.0,0.012294]
[1744295464263,0.012293,81343.0,81338.0,0.245887]
[1744295464464,0.012294,81334.0,81329.0,0.012295]
[1744295464678,0.245875,81342.0,81337.0,0.24589]
[1744295464814,0.012293,81344.0,81337.0,0.24589]
[1744295465012,0.24588,81341.0,81337.0,0.245888]
[1744295465378,0.012294,81340.0,81334.0,0.258191]
[1744295465542,0.012294,81334.0,81330.0,0.245911]
[1744295465726,0.24589,81337.0,81334.0,0.245899]
[1744295466127,0.24589,81337.0,81332.0,0.245902]
[1744295466329,0.09484,81339.0,81338.0,0.245887]
[1744295466774,0.09484,81339.0,81335.0,0.245896]
[1744295466917,0.09484,81339.0,81331.0,0.245907]
[1744295467119,0.09484,81339.0,81334.0,0.012294]
[1744295467315,0.09484,81339.0,81337.0,0.24589]
[1744295467517,0.09484,81339.0,81335.0,0.245893]
[1744295467725,0.340725,81339.0,81335.0,0.245893]
[1744295468047,0.09484,81339.0,81337.0,0.245888]
[1744295468557,0.340724,81339.0,81336.0,0.012294]
[1744295468783,0.09484,81339.0,81336.0,0.012294]
[1744295469009,0.09484,81339.0,81310.0,0.12055382]
[1744295469217,0.09484,81339.0,81318.0,0.012297]
[1744295469218,0.012296,81326.0,81318.0,0.012297]
[1744295469339,0.245923,81328.0,81324.0,0.245929]
[1744295469793,0.245923,81326.0,81322.0,0.258231]
[1744295470018,0.012294,81335.0,81330.0,0.245911]
[1744295470237,0.245909,81331.0,81328.0,0.25821]
[1744295470430,0.245909,81331.0,81328.0,0.245915]
[1744295470929,0.02233933,81345.0,81338.0,0.258181]
[1744295471087,0.245896,81335.0,81332.0,0.245903]
[1744295471294,0.012294,81336.0,81331.0,0.245906]
[1744295471523,0.25819,81336.0,81333.0,0.245902]
[1744295471932,0.09484,81339.0,81336.0,0.245892]
[1744295472099,0.012294,81337.0,81331.0,0.245907]
[1744295472303,0.245893,81336.0,81332.0,0.245902]
[1744295472509,0.25819,81337.0,81332.0,0.012295]
[1744295472713,0.353018,81339.0,81334.0,0.245896]
[1744295473018,0.245892,81337.0,81334.0,0.245896]
[1744295473220,0.340724,81339.0,81336.0,0.245893]
[1744295473417,0.245891,81337.0,81334.0,0.245899]
[1744295473763,0.245891,81337.0,81311.0,0.831938]
[1744295473764,0.012295,81328.0,81323.0,0.012296]
[1744295473884,0.09484,81339.0,81333.0,0.012295]
[1744295474091,0.09484,81339.0,81335.0,0.012294]
[1744295474298,0.09484,81339.0,81336.0,0.24589]
[1744295474535,0.09484,81339.0,81337.0,0.245887]
[1744295475060,0.09484,81339.0,81334.0,0.258187]
[1744295475061,0.245893,81336.0,81331.0,0.245908]
[1744295475293,0.245897,81335.0,81331.0,0.245908]
[1744295475411,0.245902,81333.0,81330.0,0.258206]
[1744295475617,0.258199,81334.0,81329.0,0.012295]
[1744295475820,0.245893,81337.0,81332.0,0.012295]
[1744295476020,0.09484,81339.0,81338.0,0.258181]
[1744295476493,0.09484,81339.0,81337.0,0.24589]
[1744295476705,0.09484,81339.0,81338.0,0.258181]
[1744295477462,0.09484,81339.0,81336.0,0.24589]
[1744295477667,0.09484,81339.0,81331.0,0.258201]
[1744295477668,0.012295,81329.0,81323.0,0.012296]
[1744295477869,0.245912,81330.0,81327.0,0.24592]
[1744295478102,0.258206,81331.0,81326.0,0.258219]
[1744295478415,0.09484,81339.0,81334.0,0.25819]
[1744295478570,0.09484,81339.0,81338.0,0.258181]
[1744295478774,0.09484,81339.0,81334.0,0.012294]
[1744295478985,0.24589,81338.0,81334.0,0.012294]
[1744295479185,0.258184,81338.0,81330.0,0.258204]
[1744295479387,0.09484,81339.0,81335.0,0.012294]
[1744295479586,0.340725,81339.0,81336.0,0.245893]
[1744295479813,0.09484,81339.0,81338.0,0.258181]
[1744295480394,4e-05,81339.0,81338.0,0.258181]
[1744295480593,4e-05,81339.0,81338.0,0.37873482]
[1744295480794,4e-05,81339.0,81338.0,0.258181]
[1744295481694,4e-05,81339.0,81338.0,0.37873482]
[1744295482247,4e-05,81339.0,81338.0,0.71873482]
[1744295482452,4e-05,81339.0,81338.0,0.75670321]
[1744295483874,4e-05,81339.0,81338.0,0.8832159]
[1744295484539,4e-05,81339.0,81338.0,0.84524751]
[1744295485586,4e-05,81339.0,81338.0,0.13880669]
[1744295485790,4e-05,81339.0,81338.0,0.38469369]
[1744295486483,4e-05,81339.0,81338.0,0.258181]
[1744295486685,4e-05,81339.0,81338.0,0.37873482]
[1744295489452,4e-05,81339.0,81338.0,0.75672324]
[1744295489682,4e-05,81339.0,81338.0,0.77126409]
[1744295489866,4e-05,81339.0,81338.0,0.73327567]
[1744295490074,4e-05,81339.0,81338.0,0.75672717]
[1744295490206,4e-05,81339.0,81338.0,0.71873482]
[1744295492203,4e-05,81339.0,81338.0,0.37873482]
[1744295492642,4e-05,81339.0,81338.0,0.40154053]
[1744295493139,4e-05,81339.0,81338.0,0.4129429]
[1744295494230,4e-05,81339.0,81338.0,0.80547482]
[1744295497784,4e-05,81339.0,81338.0,0.79093397]
[1744295498756,4e-05,81339.0,81338.0,0.95623912]
[1744295501007,4e-05,81339.0,81338.0,0.91824805]
[1744295501916,4e-05,81339.0,81338.0,0.80547135]
[1744295504330,4e-05,81339.0,81338.0,0.9707765]
[1744295507126,1.8e-07,81345.0,81344.0,0.598162]
[1744295507328,1.8e-07,81345.0,81344.0,0.78264664]
[1744295507532,1.8e-07,81345.0,81344.0,0.80545235]
[1744295509491,1.8e-07,81345.0,81344.0,0.7909115]
[1744295509712,1.8e-07,81345.0,81344.0,0.7529239]
[1744295510223,1.8e-07,81345.0,81344.0,0.76746475]
[1744295510466,1.8e-07,81345.0,81344.0,0.80554522]
[1744295511179,0.0001686,81355.0,81354.0,0.61267085]
[1744295511180,7.8e-07,81355.0,81354.0,0.61267085]
[1744295511421,0.0002084,81364.0,81363.0,0.598101]
[1744295511422,7.8e-07,81364.0,81363.0,0.598101]
[1744295511623,7.8e-07,81364.0,81363.0,1.35807804]
[1744295511755,1.4e-07,81364.0,81363.0,1.41896422]
[1744295512182,4.4e-07,81379.0,81378.0,0.258054]
[1744295512559,4.4e-07,81379.0,81378.0,0.77122914]
[1744295512732,4.4e-07,81379.0,81378.0,0.79403485]
[1744295512886,4.4e-07,81379.0,81378.0,0.80543722]
[1744295513099,4.4e-07,81379.0,81378.0,0.81474053]
[1744295513300,4.4e-07,81379.0,81378.0,0.81974053]
[1744295513890,4.4e-07,81379.0,81378.0,1.01938053]
[1744295514351,4.4e-07,81388.0,81387.0,0.598025]
[1744295514642,4.4e-07,81388.0,81387.0,0.78260251]
[1744295515064,4.4e-07,81388.0,81387.0,0.80540822]
[1744295515436,4.4e-07,81388.0,81387.0,0.76732775]
[1744295516063,4.4e-07,81388.0,81387.0,0.80522006]
[1744295516463,4.4e-07,81388.0,81387.0,0.77232775]
[1744295516661,4.4e-07,81388.0,81387.0,0.81018855]
[1744295517445,4.4e-07,81402.0,81401.0,0.257981]
[1744295517668,0.0001278,81402.0,81401.0,0.93271567]
[1744295517829,0.0001278,81402.0,81401.0,0.95552138]
[1744295518245,0.0001278,81402.0,81401.0,0.96692375]
[1744295518510,8e-07,81402.0,81401.0,0.96692375]
[1744295519212,0.004,81409.0,81408.0,0.597959]
[1744295519213,8e-07,81409.0,81408.0,0.597959]
[1744295519441,8e-07,81409.0,81408.0,0.73305367]
[1744295519857,8e-07,81409.0,81408.0,0.75585938]
[1744295520288,1e-06,81424.0,81423.0,0.597911]
[1744295520473,1e-06,81424.0,81423.0,0.73300567]
[1744295520700,1e-06,81424.0,81423.0,0.93260567]
[1744295521097,1e-06,81424.0,81423.0,0.95541138]
[1744295521620,1e-06,81424.0,81423.0,0.96748353]
[1744295521759,1e-06,81424.0,81423.0,0.9788859]
[1744295522317,1e-06,81424.0,81423.0,1.3976859]
[1744295522679,0.0001682,81444.0,81438.0,0.597864]
[1744295522875,0.00442463,81439.0,81438.0,0.73295867]
[1744295523078,0.00442463,81439.0,81438.0,0.74122353]
[1744295523420,0.00442463,81439.0,81438.0,0.63207208]
[1744295523623,0.00442463,81439.0,81438.0,0.7526259]
[1744295523982,0.00442463,81439.0,81438.0,0.1547619]
[1744295524188,0.00442463,81439.0,81438.0,0.15563853]
[1744295524391,0.00442463,81439.0,81438.0,0.13528836]
[1744295524576,0.00442463,81439.0,81438.0,0.13283282]
[1744295526043,0.00442463,81439.0,81437.0,0.25684787]
[1744295526178,0.00442463,81439.0,81438.0,0.012279]
[1744295526373,0.00442463,81439.0,81438.0,0.38087349]
[1744295526635,0.00442463,81439.0,81438.0,0.37841782]
[1744295527538,0.00442463,81439.0,81438.0,0.40093487]
[1744295527712,0.00442463,81439.0,81438.0,0.42673425]
[1744295528912,0.00442463,81439.0,81438.0,0.76673425]
[1744295530370,0.00442463,81439.0,81438.0,0.7521934]
[1744295531288,0.0001682,81444.0,81443.0,0.257848]
[1744295531591,0.00029548,81444.0,81443.0,0.37840182]
[1744295532169,0.00029548,81444.0,81442.0,0.245572]
[1744295532170,0.00029548,81444.0,81442.0,0.245573]
[1744295532377,0.00029548,81444.0,81443.0,0.257848]
[1744295532557,0.00029548,81444.0,81438.0,0.257862]
[1744295532759,0.00029548,81444.0,81442.0,0.245573]
[1744295533082,0.00029548,81444.0,81443.0,0.257848]
[1744295533334,0.00029548,81444.0,81441.0,0.245576]
[1744295533515,0.0489,81443.0,81439.0,0.257859]
[1744295533678,0.245576,81442.0,81439.0,0.245582]
[1744295533879,0.0489,81443.0,81440.0,0.245579]
[1744295534141,0.0489,81443.0,81441.0,0.257854]
[1744295534345,0.0489,81443.0,81442.0,0.245573]
[1744295534530,0.0489,81443.0,81442.0,0.257851]
[1744295535245,0.0489,81443.0,81409.0,0.05]
[1744295535400,0.00029548,81444.0,81438.0,0.245585]
[1744295535401,0.048,81439.0,81438.0,0.245585]
[1744295535608,0.048,81439.0,81437.0,0.257866]
[1744295535823,0.048,81439.0,81438.0,0.245585]
[1744295536025,0.048,81439.0,81438.0,0.257864]
[1744295537820,0.048,81439.0,81438.0,0.37841782]
[1744295538410,0.048,81439.0,81438.0,0.28048125]
[1744295538791,0.048,81439.0,81438.0,0.40103507]
[1744295539305,0.048,81439.0,81438.0,0.29178262]
[1744295539711,0.048,81439.0,81438.0,0.27950362]
[1744295539934,0.048,81439.0,81438.0,0.01130137]
[1744295540353,0.048,81439.0,81438.0,0.257864]
[1744295541471,0.00029548,81444.0,81441.0,0.245573]
[1744295541634,0.24557,81443.0,81440.0,0.257856]
[1744295541830,0.245571,81443.0,81440.0,0.257856]
[1744295542061,0.24586348,81444.0,81440.0,0.012278]
[1744295542265,0.00029548,81444.0,81443.0,0.24557]
[1744295542529,0.00029548,81444.0,81441.0,0.257853]
[1744295543066,0.00029548,81444.0,81443.0,0.24557]
[1744295543289,0.00029548,81444.0,81442.0,0.245571]
[1744295543491,0.00029548,81444.0,81443.0,0.257848]
[1744295544188,0.00029548,81444.0,81443.0,0.26920365]
[1744295544388,0.00029548,81444.0,81443.0,0.29194278]
[1744295544593,0.04529548,81444.0,81443.0,0.29194278]
[1744295544792,0.04529548,81444.0,81443.0,0.03409478]
[1744295544793,0.30314048,81444.0,81443.0,0.03409478]
[1744295545384,0.245574,81442.0,81438.0,0.26832213]
[1744295545644,0.245577,81441.0,81438.0,0.26832313]
[1744295545884,0.245576,81441.0,81438.0,0.02273913]
[1744295546060,0.012278,81440.0,81439.0,0.03409478]
[1744295546302,0.257857,81440.0,81439.0,0.01135565]
[1744295546474,0.47251082,81440.0,81439.0,0.01135565]
[1744295546881,0.87251082,81440.0,81439.0,0.01135565]
[1744295547117,0.47251082,81440.0,81439.0,0.01135565]
[1744295547320,0.245612,81430.0,81426.0,0.245621]
[1744295547468,0.0941,81440.0,81438.0,0.257863]
[1744295547677,0.0941,81440.0,81436.0,0.245591]
[1744295547993,0.0941,81440.0,81436.0,0.012279]
[1744295548211,0.339682,81440.0,81437.0,0.03413024]
[1744295548498,0.257864,81438.0,81437.0,0.03413024]
[1744295548673,0.257864,81438.0,81437.0,0.01135565]
[1744295549077,0.245596,81435.0,81431.0,0.257884]
[1744295549333,0.315585,81439.0,81422.0,0.012281]
[1744295549334,0.01228,81433.0,81422.0,0.012281]
[1744295549533,0.257883,81433.0,81428.0,0.245615]
[1744295549712,0.07,81439.0,81417.0,0.012282]
[1744295549713,0.012281,81423.0,81417.0,0.012282]
[1744295549918,0.245628,81424.0,81418.0,0.012282]
[1744295550125,0.245624,81425.0,81422.0,0.245633]
[1744295550281,0.245625,81425.0,81422.0,0.245633]
[1744295550493,0.245624,81426.0,81423.0,0.24563]
[1744295551129,0.245618,81428.0,81424.0,0.245627]
[1744295551300,0.01228,81428.0,81423.0,0.257911]
[1744295551484,0.245621,81426.0,81423.0,0.24563]
[1744295551682,0.012282,81416.0,81405.0,0.0003362]
[1744295551944,0.257959,81408.0,81405.0,0.0003362]
[1744295552361,0.37851282,81408.0,81405.0,0.0003362]
[1744295552976,0.37851282,81408.0,81407.0,0.12679471]
[1744295553146,0.257959,81408.0,81407.0,0.12679471]
[1744295553776,0.0965,81409.0,81408.0,0.245676]
[1744295553977,0.0965,81409.0,81408.0,0.257959]
[1744295554527,0.0473,81421.0,81420.0,0.25792]
[1744295554729,0.0473,81421.0,81420.0,0.245639]
[1744295554942,0.292937,81421.0,81417.0,0.245646]
[1744295555117,0.292937,81421.0,81416.0,0.012282]
[1744295555453,0.059581,81421.0,81416.0,0.245651]
[1744295555700,0.059581,81421.0,81416.0,0.012282]
[1744295555895,0.0473,81421.0,81420.0,0.245639]
[1744295556303,0.306189,81430.0,81425.0,0.257904]
[1744295556503,0.245619,81427.0,81423.0,0.24563]
[1744295556700,0.012281,81426.0,81420.0,0.257918]
[1744295556862,0.245621,81427.0,81423.0,0.245628]
[1744295557337,0.0483,81430.0,81424.0,0.012281]
[1744295557546,0.29391,81430.0,81426.0,0.245619]
[1744295557737,0.0483,81430.0,81429.0,0.257892]
[1744295557937,0.0492,81431.0,81430.0,0.257889]
[1744295558245,0.0492,81431.0,81430.0,0.257849]
[1744295559868,0.0492,81431.0,81423.0,0.24563]
[1744295559869,0.01228,81429.0,81423.0,0.24563]
[1744295560103,0.245631,81423.0,81420.0,0.245637]
[1744295560292,0.01228,81427.0,81421.0,0.012281]
[1744295560499,0.245621,81426.0,81421.0,0.257917]
[1744295560652,0.245618,81427.0,81423.0,0.24563]
[1744295560853,0.04924,81431.0,81428.0,0.01228]
[1744295561085,0.245613,81429.0,81426.0,0.24562]
[1744295561491,0.245616,81428.0,81426.0,0.24562]
[1744295561887,0.04924,81431.0,81429.0,0.01228]
[1744295562070,0.04924,81431.0,81427.0,0.245618]
[1744295562071,0.04924,81431.0,81428.0,0.257894]
[1744295562267,0.04924,81431.0,81429.0,0.245612]
[1744295562473,0.04924,81431.0,81430.0,0.257889]
[1744295563457,0.04924,81431.0,81430.0,1.159619]
[1744295563683,0.04928,81431.0,81430.0,1.159619]
[1744295567386,0.307166,81431.0,81430.0,0.90173]
[1744295567579,0.294886,81431.0,81430.0,0.90173]
[1744295568164,0.307166,81431.0,81430.0,0.90173]
[1744295568358,0.04928,81431.0,81430.0,0.90173]
[1744295568885,0.04928,81431.0,81430.0,1.147339]
[1744295569262,0.294886,81431.0,81430.0,0.90173]
[1744295569889,0.307166,81431.0,81430.0,0.90173]
[1744295570429,0.294886,81431.0,81430.0,0.90173]
[1744295570601,0.04928,81431.0,81430.0,0.90173]
[1744295570802,0.04928,81431.0,81430.0,1.147339]
[1744295571005,0.04928,81431.0,81430.0,1.159619]
[1744295571006,8e-05,81431.0,81430.0,1.159619]
[1744295572329,8e-05,81431.0,81430.0,1.147339]
[1744295572668,8e-05,81431.0,81430.0,1.159619]
[1744295573404,0.257966,81431.0,81430.0,0.90173]
[1744295574122,0.307666,81431.0,81430.0,0.90173]
[1744295575253,0.353066,81431.0,81430.0,0.90173]
[1744295575490,0.47361982,81431.0,81430.0,0.90173]
[1744295577669,0.29346,81431.0,81430.0,0.90173]
[1744295577913,0.539066,81431.0,81430.0,0.90173]
[1744295578058,0.04548,81431.0,81430.0,1.147339]
[1744295578435,0.04548,81431.0,81430.0,1.159619]
[1744295578608,8e-05,81431.0,81430.0,1.159619]
[1744295579494,8e-05,81431.0,81430.0,1.28017282]
[1744295579873,8e-05,81431.0,81430.0,1.29154896]
[1744295581722,0.12789515,81449.0,81430.0,1.29154896]
[1744295581723,3.5e-07,81449.0,81448.0,0.012277]
[1744295581921,3.5e-07,81449.0,81448.0,0.7353818]
[1744295582084,3.5e-07,81449.0,81448.0,0.79070281]
[1744295582286,3.5e-07,81449.0,81448.0,0.72976196]
[1744295582573,0.0001681,81464.0,81458.0,0.245524]
[1744295582574,0.24559,81463.0,81458.0,0.245524]
[1744295582686,0.245525,81458.0,81453.0,0.24554]
[1744295582893,0.245532,81456.0,81451.0,0.245545]
[1744295583252,0.257804,81457.0,81449.0,0.257828]
[1744295583396,0.012276,81455.0,81450.0,0.245549]
[1744295583595,0.012277,81452.0,81438.0,0.245583]
[1744295583819,0.012277,81452.0,81431.0,0.34]
[1744295583820,0.012277,81447.0,81443.0,0.24557]
[1744295584049,0.257832,81449.0,81445.0,0.245562]
[1744295584284,0.245556,81448.0,81444.0,0.012278]
[1744295585225,0.257833,81448.0,81440.0,0.012278]
[1744295585440,0.257831,81449.0,81444.0,0.245567]
[1744295585596,0.245556,81448.0,81444.0,0.245567]
[1744295585797,0.012277,81448.0,81443.0,0.24557]
[1744295586005,0.012277,81453.0,81448.0,0.245555]
[1744295586203,0.257823,81452.0,81447.0,0.012277]
[1744295586458,0.045,81458.0,81448.0,0.012277]
[1744295586633,0.290525,81458.0,81452.0,0.012277]
[1744295586858,0.0001681,81464.0,81462.0,0.012275]
[1744295587199,0.0001681,81464.0,81462.0,0.257788]
[1744295592620,0.0001681,81464.0,81458.0,0.245523]
[1744295592817,0.0001681,81464.0,81461.0,0.245516]
[1744295593077,0.0001681,81464.0,81462.0,0.257788]
[1744295593811,0.2456751,81464.0,81461.0,0.257791]
[1744295594000,0.2456751,81464.0,81461.0,0.245516]
[1744295594200,0.0124431,81464.0,81458.0,0.245524]
[1744295594403,0.0496,81459.0,81448.0,0.245554]
[1744295594582,0.012276,81454.0,81449.0,0.012277]
[1744295595005,0.245542,81453.0,81450.0,0.245549]
[1744295595227,0.295123,81459.0,81453.0,0.012277]
[1744295595428,0.012276,81456.0,81451.0,0.012277]
[1744295595627,0.24554,81453.0,81450.0,0.257825]
[1744295595845,0.245543,81452.0,81449.0,0.012277]
[1744295596165,0.245543,81452.0,81448.0,0.245553]
[1744295596656,0.245543,81452.0,81443.0,0.12637008]
[1744295596657,0.245561,81447.0,81443.0,0.12637008]
[1744295596861,0.245564,81445.0,81443.0,0.12637008]
[1744295597059,0.257842,81445.0,81443.0,0.12637008]
[1744295597439,0.245559,81447.0,81443.0,0.12637008]
[1744295597642,0.245562,81446.0,81443.0,0.12637008]
[1744295597984,0.245562,81446.0,81415.0,0.689549]
[1744295597985,0.012278,81443.0,81436.0,0.257867]
[1744295598165,0.012278,81443.0,81437.0,0.012279]
[1744295598166,0.012278,81442.0,81437.0,0.012279]
[1744295598377,0.012278,81444.0,81439.0,0.245582]
[1744295598622,0.245576,81442.0,81438.0,0.257864]
[1744295598853,0.12055382,81445.0,81441.0,0.012278]
[1744295599026,0.12055382,81445.0,81442.0,0.245573]
[1744295599202,0.36612082,81445.0,81441.0,0.012278]
[1744295599406,0.12055382,81445.0,81440.0,0.012278]
[1744295599581,0.645555,81449.0,81440.0,0.012278]
[1744295599582,0.4,81449.0,81448.0,0.012277]
[1744295599787,0.0464,81450.0,81449.0,0.257829]
[1744295600191,0.05897683,81459.0,81456.0,0.012276]
[1744295600386,0.17953065,81459.0,81453.0,0.245539]
[1744295600588,0.245526,81458.0,81453.0,0.245539]
[1744295600975,0.24553,81457.0,81453.0,0.245539]
[1744295601177,0.245531,81456.0,81452.0,0.257814]
[1744295601381,0.012276,81456.0,81451.0,0.245545]
[1744295601603,0.245532,81456.0,81452.0,0.24554]
[1744295601815,0.245528,81457.0,81454.0,0.245537]
[1744295602004,0.245532,81456.0,81453.0,0.257817]
[1744295602209,0.19764,81457.0,81454.0,0.012276]
[1744295602411,0.0458,81461.0,81460.0,0.012275]
[1744295602721,0.0458,81461.0,81460.0,0.257794]
[1744295603374,0.00020733,81463.0,81462.0,0.257788]
[1744295603723,0.00020733,81463.0,81462.0,0.257748]
[1744295606508,0.00024733,81463.0,81462.0,0.257748]
[1744295608663,0.00024733,81463.0,81462.0,0.28049793]
[1744295608866,0.00024733,81463.0,81462.0,0.29187366]
[1744295609066,0.00024733,81463.0,81462.0,0.27963866]
[1744295609527,0.00024733,81463.0,81462.0,0.03412566]
[1744295609730,0.00024733,81463.0,81462.0,0.245513]
[1744295610211,0.00024733,81463.0,81462.0,0.257788]
[1744295610641,0.00024733,81463.0,81462.0,0.245513]
[1744295611265,0.00024733,81463.0,81461.0,0.257791]
[1744295611502,0.00024733,81463.0,81449.0,0.012277]
[1744295611503,0.245538,81454.0,81449.0,0.012277]
[1744295611843,0.049,81457.0,81456.0,0.257807]
[1744295612049,0.049,81457.0,81455.0,0.257809]
[1744295612196,0.049,81457.0,81456.0,0.257807]
[1744295612402,0.01252233,81463.0,81457.0,0.012276]
[1744295612749,0.01252233,81463.0,81459.0,0.245519]
[1744295612750,0.00024733,81463.0,81459.0,0.245519]
[1744295613122,0.00024733,81463.0,81458.0,0.012276]
[1744295613123,0.00024733,81463.0,81460.0,0.012275]
[1744295613323,0.01252233,81463.0,81458.0,0.245522]
[1744295613726,0.012275,81460.0,81454.0,0.245534]
[1744295613942,0.00024733,81463.0,81458.0,0.245524]
[1744295614142,0.00024733,81463.0,81457.0,0.012276]
[1744295614355,0.00028733,81463.0,81456.0,0.012276]
[1744295614542,0.00028733,81463.0,81458.0,0.245525]
[1744295614708,0.245513,81462.0,81457.0,0.245528]
[1744295614910,0.012275,81461.0,81457.0,0.245528]
[1744295615382,0.245522,81459.0,81456.0,0.24553]
[1744295615552,0.01256233,81463.0,81457.0,0.257804]
[1744295615752,0.245516,81461.0,81457.0,0.257804]
[1744295616077,0.01256233,81463.0,81462.0,0.257788]
[1744295616078,0.00028733,81463.0,81462.0,0.257788]